fUST/lending_fUST_20250609
["ID","MTS","AMOUNT","RATE_DAILY","PERIOD"]
[365081139,1749448246173,-500.0,0.0002302,2]
[365081140,1749448246184,-500.0,0.0002302,2]
[365081141,1749448246195,-500.0,0.0002302,2]
[365081142,1749448246209,-500.0,0.0002302,2]
[365081143,1749448246221,-1000.0,0.0002302,2]
[365081144,1749448246233,-500.0,0.0002302,2]
[365081145,1749448246246,-1000.0,0.0002302,2]
[365081146,1749448246259,-500.0,0.0002302,2]
[365081147,1749448246274,-1000.0,0.0002302,2]
[365081148,1749448246287,-1000.0,0.0002302,2]
[365081149,1749448246298,-500.0,0.0002302,2]
[365081150,1749448246312,-1000.0,0.0002302,2]
[365081151,1749448246325,-500.0,0.0002302,2]
[365081152,1749448246338,-1965.86189664,0.0002302,2]
[365081153,1749448246351,-1000.0,0.0002302,2]
[365081154,1749448246364,-500.0,0.0002302,2]
[365081155,1749448246379,-1000.0,0.0002302,2]
[365081156,1749448246392,-500.0,0.0002302,2]
[365081157,1749448246405,-524.36179069,0.0002302,2]
[365081175,1749449141768,165.025466,0.00013699,2]
[365081253,1749449432043,-240.02681948,0.0001975,2]
[365081255,1749449432054,-158.689502,0.0001985,2]
[365081257,1749449432064,-631.71182792,0.00019941,2]
[365081262,1749449432101,-527.76817208,0.00019941,2]
[365081264,1749449432116,-1200.0,0.0002068,2]
[365081266,1749449432126,-300.0,0.00020681,2]
[365081268,1749449432136,-300.0,0.00020681,2]
[365081270,1749449432146,-300.0,0.00020681,2]
[365081272,1749449432156,-300.0,0.00020681,2]
[365081274,1749449432166,-300.0,0.00020681,2]
[365081277,1749449432178,-22442.1216816,0.00020683,2]
[365081297,1749449437982,-579.74,0.00018356,2]
[365081298,1749449437993,-2457.8783184,0.00020683,2]
[365081299,1749449438002,-160.0,0.00020852,2]
[365081300,1749449438012,-160.0,0.00020852,2]
[365081301,1749449438024,-229.64266968,0.00020853,2]
[365081302,1749449438033,-424.05420114,0.00020853,2]
[365081303,1749449438043,-213.08899333,0.00020853,2]
[365081304,1749449438053,-834.7738823,0.00020853,2]
[365081305,1749449438062,-165.025466,0.00020951,2]
[365081306,1749449438072,-207.4,0.00021366,2]
[365081307,1749449438082,-1009.1765755,0.00021366,2]
[365081308,1749449438092,-500.0,0.00021366,2]
[365081309,1749449438102,-5000.0,0.00021366,2]
[365081310,1749449438111,-500.0,0.00021366,2]
[365081311,1749449438121,-500.0,0.00021366,2]
[365081312,1749449438130,-500.0,0.00021366,2]
[365081313,1749449438140,-1000.0,0.00021366,2]
[365081314,1749449438150,-500.0,0.00021366,2]
[365081315,1749449438162,-1000.0,0.00021366,2]
[365081316,1749449438172,-500.0,0.00021366,2]
[365081317,1749449438181,-1000.0,0.00021366,2]
[365081318,1749449438191,-500.0,0.00021366,2]
[365081319,1749449438201,-1000.0,0.00021366,2]
[365081320,1749449438210,-500.0,0.00021366,2]
[365081321,1749449438220,-1000.0,0.00021366,2]
[365081322,1749449438230,-500.0,0.00021366,2]
[365081323,1749449438240,-1000.0,0.00021366,2]
[365081324,1749449438249,-500.0,0.00021366,2]
[365081325,1749449438259,-1000.0,0.00021366,2]
[365081326,1749449438272,-500.0,0.00021366,2]
[365081327,1749449438282,-1000.0,0.00021366,2]
[365081328,1749449438292,-1000.0,0.00021366,2]
[365081329,1749449438302,-500.0,0.00021366,2]
[365081330,1749449438312,-1000.0,0.00021366,2]
[365081331,1749449438322,-162.92863977,0.00021366,2]
[365081332,1749449438332,-1000.0,0.00021366,2]
[365081333,1749449438341,-1000.0,0.00021366,2]
[365081334,1749449438351,-1000.0,0.00021366,2]
[365081335,1749449438361,-1000.0,0.00021366,2]
[365081336,1749449438371,-701.78429771,0.00021366,2]
[365081337,1749449438381,-250.0,0.00021397,2]
[365081338,1749449438391,-1739.22,0.00021603,2]
[365081339,1749449438402,-150.0,0.000219,2]
[365081340,1749449438412,-246.85040892,0.000219,6]
[365081341,1749449438421,-5000.0,0.00021914,2]
[365081342,1749449438431,-296.29529491,0.00021917,4]
[365081343,1749449438440,-445.18410455,0.00021917,4]
[365081344,1749449438450,-436.74464738,0.00021917,4]
[365081345,1749449438461,-257.95673216,0.00021917,4]
[365081346,1749449438470,-373.8827273,0.00021917,4]
[365081347,1749449438480,-440.0,0.00021917,4]
[365081348,1749449438489,-440.0,0.00021917,4]
[365081349,1749449438499,-357.38019791,0.00021917,4]
[365081350,1749449438512,-82.61980209,0.00021917,4]
[365081351,1749449438523,-471.0,0.00021917,4]
[365081352,1749449438532,-4209.63,0.00021917,4]
[365081353,1749449438541,-440.0,0.00021917,4]
[365081354,1749449438551,-440.0,0.00021917,4]
[365081355,1749449438560,-500.0,0.00021917,4]
[365081356,1749449438570,-440.0,0.00021917,4]
[365081357,1749449438579,-440.0,0.00021917,4]
[365081358,1749449438589,-440.0,0.00021917,4]
[365081359,1749449438599,-834.63,0.00021917,4]
[365081360,1749449438608,-440.0,0.00021917,4]
[365081361,1749449438618,-440.0,0.00021917,4]
[365081362,1749449438628,-430.0,0.00021917,4]
[365081363,1749449438637,-440.0,0.00021917,4]
[365081364,1749449438648,-544.75,0.00021917,4]
[365081365,1749449438657,-565.3157289,0.00021917,4]
[365081366,1749449438668,-531.5,0.00021917,4]
[365081367,1749449438678,-560.25996135,0.00021917,4]
[365081368,1749449438687,-635.86,0.00021917,4]
[365081369,1749449438698,-474.22,0.00021917,4]
[365081370,1749449438707,-169.56857233,0.00021917,4]
[365081371,1749449438719,-412.03595375,0.00021917,4]
[365081383,1749449446257,-174.20771843,0.00020753,2]
[365081384,1749449446270,-204.58547392,0.00021917,4]
[365081385,1749449446282,-674.26,0.00021917,4]
[365081386,1749449446291,-440.0,0.00021917,4]
[365081387,1749449446301,-440.0,0.00021917,4]
[365081389,1749449446311,-440.0,0.00021917,4]
[365081390,1749449446320,-440.0,0.00021917,4]
[365081391,1749449446330,-440.0,0.00021917,4]
[365081392,1749449446339,-172.64663163,0.00021918,2]
[365081393,1749449446349,-150.49,0.0002199,10]
[365081394,1749449446359,-320.28,0.0002199,10]
[365081395,1749449446369,-266.9,0.0002199,10]
[365081396,1749449446379,-420.0,0.00021998,4]
[365081397,1749449446389,-440.0,0.00021998,4]
[365081398,1749449446399,-441.35070794,0.00021998,4]
[365081399,1749449446408,-430.0,0.00021998,4]
[365081400,1749449446418,-296.63768542,0.00021998,4]
[365081401,1749449446428,-168.717,0.00021999,2]
[365081402,1749449446437,-493.45,0.00021999,4]
[365081403,1749449446446,-2510.63275968,0.00022,7]
[365081404,1749449446459,-766.64266562,0.00022,7]
[365081405,1749449446470,-22838.85735562,0.00022,7]
[365081409,1749449836335,203.0,0.00018,2]
[365081411,1749449916091,637.6,0.00017808,2]
[365081412,1749449942274,929934.9607786,0.00024542,120]
[365081414,1749449996615,629.49,0.00016945,2]
[365081416,1749450081166,621.48,0.00016949,2]
[365081418,1749450109011,165.025466,0.00013699,2]
[365081420,1749450161336,613.57,0.00017074,2]
[365081425,1749450244122,320.33289558,0.0001679,2]
[365081426,1749450244148,285.42710442,0.0001679,2]
[365081427,1749450325289,598.05,0.00017051,2]
[365081430,1749450409256,590.44,0.00016773,2]
[365081436,1749450491992,582.92,0.000168,2]
[365081449,1749450558131,-1165.84,0.00018327,2]
[365081450,1749450558154,-434.3016927,0.00019787,2]
[365081451,1749450558180,-1748.76,0.00019854,2]
[365081452,1749450558202,-300.0,0.00019999,2]
[365081453,1749450558223,-1033.0,0.0002,30]
[365081454,1749450558245,-195.58067155,0.0002,2]
[365081455,1749450558269,-6315.31982181,0.0002,2]
[365081456,1749450558292,-1183.36842578,0.0002,2]
[365081457,1749450558316,-360.34610621,0.0002,2]
[365081458,1749450558338,-554.42837408,0.0002,2]
[365081459,1749450575371,538.41,0.00016858,2]
[365081461,1749450585195,2713.29600669,0.00018,2]
[365081462,1749450585220,2029.70399331,0.00018,2]
[365081529,1749450632396,-385.83333708,0.0001839,2]
[365081531,1749450632409,-690.97666292,0.0001839,2]
[365081533,1749450632418,-263.3368871,0.00019923,2]
[365081535,1749450632429,-1351.8831129,0.00019923,2]
[365081536,1749450632439,-300.0,0.00019999,2]
[365081538,1749450632449,-282.0,0.00019999,2]
[365081540,1749450632459,-834.32218798,0.0002,2]
[365081542,1749450632473,-2328.13469912,0.0002,2]
[365081589,1749450638249,-20048.97426244,0.0002,2]
[365081590,1749450638259,-434.3016927,0.00020245,2]
[365081591,1749450638270,-250.228168,0.00020468,2]
[365081592,1749450638279,-434.3016927,0.00020476,2]
[365081593,1749450638289,-434.3016927,0.00020687,2]
[365081594,1749450638299,-179.33147485,0.00020751,2]
[365081595,1749450638309,-3644.267218,0.00020826,2]
[365081596,1749450638319,-160.0,0.0002085,2]
[365081597,1749450638329,-160.0,0.0002085,2]
[365081598,1749450638339,-160.0,0.0002085,2]
[365081599,1749450638349,-842.5625,0.00020858,2]
[365081600,1749450638359,-289.32690672,0.000209,4]
[365081601,1749450638369,-434.3016927,0.00020921,2]
[365081602,1749450638379,-289.32690672,0.00021038,4]
[365081603,1749450638388,-289.32690672,0.00021176,4]
[365081604,1749450638398,-153.0,0.0002126,2]
[365081605,1749450638407,-434.3016927,0.00021298,2]
[365081606,1749450638417,-289.32690672,0.00021314,5]
[365081608,1749450638427,-177.84558405,0.00021366,2]
[365081610,1749450638437,-3819.92968542,0.00021366,2]
[365081612,1749450638453,-1130.77446522,0.00021366,2]
[365081613,1749450638464,-49.29584936,0.00021366,2]
[365081614,1749450638474,-756.34815534,0.00021366,2]
[365081615,1749450638486,-243.65184466,0.00021366,2]
[365081616,1749450638495,-167.69710753,0.00021366,2]
[365081630,1749450640469,-832.30289247,0.00021366,2]
[365081631,1749450640482,-1000.0,0.00021366,2]
[365081632,1749450640495,-369.18260275,0.00021366,2]
[365081633,1749450640507,-207.4,0.00021366,2]
[365081634,1749450640517,-434.3016927,0.00021374,2]
[365081635,1749450640528,-289.32690672,0.00021452,5]
[365081636,1749450640538,-2153.63,0.00021455,2]
[365081637,1749450640548,-800.0,0.00021456,2]
[365081638,1749450640558,-197.78453008,0.00021582,2]
[365081639,1749450640567,-289.32690672,0.0002159,5]
[365081640,1749450640578,-364.9269501,0.00021671,2]
[365081641,1749450640587,-434.30169272,0.000217,2]
[365081642,1749450640597,-800.0,0.00021709,2]
[365081643,1749450640607,-289.32690672,0.00021728,5]
[365081644,1749450640618,-420.0,0.00021777,2]
[365081645,1749450640628,-289.32690672,0.00021866,6]
[365081646,1749450640637,-185.075,0.00021902,2]
[365081647,1749450640647,-5000.0,0.00021914,2]
[365081648,1749450640658,-440.95080469,0.00021917,4]
[365081649,1749450640667,-411.31626889,0.00021917,4]
[365081650,1749450640677,-440.0,0.00021917,4]
[365081651,1749450640687,-262.71262516,0.00021917,4]
[365081652,1749450640697,-440.0,0.00021917,4]
[365081653,1749450640707,-100.86001447,0.00021917,4]
[365081658,1749450643230,-377.07211836,0.00021917,4]
[365081659,1749450643242,-44.76760285,0.00021917,4]
[365081665,1749450646269,-528.71216283,0.00021917,4]
[365081666,1749450646279,-440.0,0.00021917,4]
[365081667,1749450646289,-440.0,0.00021917,4]
[365081668,1749450646299,-440.0,0.00021917,4]
[365081669,1749450646309,-491.18785696,0.00021917,4]
[365081670,1749450646328,-819.64835284,0.00021917,4]
[365081671,1749450654277,505.26,0.00016952,2]
[365081673,1749450724926,-1010.51,0.00018493,2]
[365081674,1749450736217,355.9075,0.00016947,2]
[365081675,1749450736243,143.6125,0.00016947,2]
[365081676,1749450736646,999.04,0.00018488,2]
[365081677,1749450818271,223.765,0.00016891,2]
[365081678,1749450818296,256.685,0.00016891,2]
[365081679,1749450818703,960.89,0.00018426,2]
[365081680,1749450899511,148.8425,0.00016968,2]
[365081681,1749450899536,313.2575,0.00016968,2]
[365081682,1749450899921,924.2,0.0001851,2]
[365081684,1749450980889,128.96,0.00017106,2]
[365081685,1749450980917,315.5,0.00017106,2]
[365081686,1749450981909,888.92,0.00018661,2]
[365081687,1749451062815,161.9975,0.00016865,2]
[365081688,1749451062840,302.5825,0.00016865,2]
[365081689,1749451063221,929.17,0.00018398,2]
[365081690,1749451143954,134.665,0.0001687,2]
[365081691,1749451143978,312.175,0.0001687,2]
[365081692,1749451144502,893.69,0.00018403,2]
[365081695,1749451227346,160.5525,0.00016964,2]
[365081696,1749451227372,269.2275,0.00016964,2]
[365081697,1749451227776,859.57,0.00018506,2]
[365081698,1749451308973,237.62,0.00016915,2]
[365081699,1749451308998,175.75,0.00016915,2]
[365081700,1749451309967,826.75,0.00018453,2]
[365081701,1749451391573,363.9175,0.00016796,2]
[365081702,1749451391602,33.6725,0.00016796,2]
[365081703,1749451392018,795.18,0.00018323,2]
[365081705,1749451476651,382.41,0.00016936,2]
[365081706,1749451477075,155.155,0.00018476,2]
[365081707,1749451477102,609.665,0.00018476,2]
[365081710,1749451486790,164.57641,0.00013699,2]
[365081711,1749451554110,-181.12967972,0.00019814,2]
[365081712,1749451554131,-240.02681948,0.00020467,2]
[365081713,1749451554151,-158.689502,0.00020567,2]
[365081714,1749451554172,-300.0,0.00020633,2]
[365081715,1749451554194,-300.0,0.00020633,2]
[365081716,1749451554215,-2629.26026973,0.00020634,2]
[365081717,1749451559177,367.81,0.00016929,2]
[365081718,1749451559595,224.36609,0.00018468,2]
[365081719,1749451559622,511.25391,0.00018468,2]
[365081720,1749451598088,-1103.42,0.00020007,2]
[365081721,1749451598112,-300.0,0.00020633,2]
[365081722,1749451598135,-1854.71092308,0.00020634,2]
[365081723,1749451640003,339.72,0.00016867,2]
[365081724,1749451640519,515.44359,0.00018401,2]
[365081725,1749451640546,163.99641,0.00018401,2]
[365081726,1749451676889,150.0,0.000189,2]
[365081727,1749451720187,326.75,0.00016823,2]
[365081728,1749451720603,653.5,0.00018353,2]
[365081730,1749451800144,72.17109,0.00016613,2]
[365081731,1749451800170,242.09891,0.00016613,2]
[365081732,1749451800603,628.55,0.00018124,2]
[365081781,1749451832581,-942.82,0.00019634,2]
[365081782,1749451832593,-425.0,0.00019882,2]
[365081783,1749451832603,-166.0,0.00020575,2]
[365081785,1749451832614,-300.0,0.00020633,2]
[365081786,1749451832624,-3984.89041468,0.00020634,2]
[365081790,1749451839068,-2677.75772015,0.00020634,2]
[365081791,1749451839080,-524.3489513,0.00020634,2]
[365081853,1749451840603,-13229.03172106,0.00020634,2]
[365081855,1749451840615,-1503.8489634,0.00020634,2]
[365081857,1749451840626,-155.0,0.00020634,2]
[365081859,1749451840636,-160.0,0.00020827,2]
[365081861,1749451840646,-1257.1,0.00021144,2]
[365081863,1749451840657,-1286.293216,0.00021366,2]
[365081866,1749451840669,-207.4,0.00021366,2]
[365081868,1749451840679,-434.3016927,0.00021389,2]
[365081870,1749451840689,-164.57641,0.00021404,2]
[365081872,1749451840700,-364.9269501,0.000217,2]
[365081874,1749451840709,-364.9269501,0.000217,2]
[365081876,1749451840719,-364.9269501,0.000217,2]
[365081878,1749451840729,-800.0,0.0002171,2]
[365081880,1749451840740,-167.63021714,0.00021817,2]
[365081881,1749451840750,-364.9269501,0.000219,2]
[365081882,1749451840760,-364.9269501,0.000219,2]
[365081884,1749451840770,-364.9269501,0.000219,2]
[365081886,1749451840779,-212.17306516,0.000219,6]
[365081888,1749451840789,-153.871,0.00021916,2]
[365081889,1749451840799,-440.0,0.00021917,2]
[365081890,1749451840811,-440.0,0.00021917,4]
[365081891,1749451840821,-440.0,0.00021917,4]
[365081892,1749451840831,-430.0,0.00021917,4]
[365081893,1749451840840,-440.0,0.00021917,4]
[365081894,1749451840852,-450.33808156,0.00021917,4]
[365081895,1749451840862,-315.44620358,0.00021917,4]
[365081896,1749451840871,-441.85893381,0.00021917,4]
[365081897,1749451840882,-430.0,0.00021917,4]
[365081898,1749451840891,-430.0,0.00021917,4]
[365081899,1749451840901,-440.0,0.00021917,4]
[365081900,1749451840911,-440.0,0.00021917,4]
[365081901,1749451840921,-3979.61,0.00021917,4]
[365081902,1749451840931,-440.0,0.00021917,4]
[365081903,1749451840941,-440.0,0.00021917,4]
[365081904,1749451841097,-1263.46,0.00021917,4]
[365081905,1749451841116,-440.0,0.00021917,4]
[365081906,1749451841128,-440.0,0.00021917,4]
[365081907,1749451841139,-613.7,0.00021917,4]
[365081908,1749451841151,-440.0,0.00021917,4]
[365081909,1749451841160,-1260.42,0.00021917,4]
[365081910,1749451841171,-440.0,0.00021917,4]
[365081911,1749451841181,-440.0,0.00021917,4]
[365081912,1749451841192,-760.39,0.00021917,4]
[365081913,1749451841201,-585.56,0.00021917,4]
[365081914,1749451841211,-440.0,0.00021917,4]
[365081915,1749451841221,-514.65,0.00021917,4]
[365081916,1749451841231,-735.1,0.00021917,4]
[365081917,1749451841241,-843.15,0.00021917,4]
[365081918,1749451841251,-440.0,0.00021917,4]
[365081919,1749451841260,-440.0,0.00021917,4]
[365081920,1749451841269,-692.8,0.00021917,4]
[365081921,1749451841280,-991.76,0.00021917,4]
[365081922,1749451841291,-933.44,0.00021917,4]
[365081923,1749451841302,-440.0,0.00021917,4]
[365081924,1749451841312,-440.0,0.00021917,4]
[365081925,1749451841323,-400.59169336,0.00021917,4]
[365081926,1749451841337,-39.40830664,0.00021917,4]
[365081927,1749451841348,-330.82302092,0.00021917,4]
[365081928,1749451841359,-410.71691079,0.00021917,4]
[365081929,1749451841368,-440.0,0.00021917,4]
[365081930,1749451841379,-440.0,0.00021917,4]
[365081931,1749451841389,-448.86,0.00021917,4]
[365081932,1749451841402,-440.0,0.00021917,4]
[365081933,1749451841413,-430.0,0.00021917,4]
[365081934,1749451841424,-440.0,0.00021917,4]
[365081935,1749451841434,-166.98660181,0.00021918,2]
[365081936,1749451841444,-1263.46,0.00021985,4]
[365081937,1749451841455,-12916.1454818,0.00021986,2]
[365081938,1749451841465,-93.68514212,0.00021987,2]
[365081944,1749451843479,-4906.31485788,0.00021987,2]
[365081945,1749451843492,-830.53431937,0.00021987,2]
[365081946,1749451843502,-1000.0,0.00021987,2]
[365081947,1749451843511,-1000.0,0.00021987,2]
[365081948,1749451843522,-302.018955,0.00021987,2]
[365081949,1749451843624,-362.01454701,0.00021987,2]
[365081953,1749451846479,-335.96649799,0.00021987,2]
[365081954,1749451846490,-1000.0,0.00021987,2]
[365081955,1749451846500,-1000.0,0.00021987,2]
[365081956,1749451846510,-1000.0,0.00021987,2]
[365081957,1749451846520,-1000.0,0.00021987,2]
[365081958,1749451846530,-1000.0,0.00021987,2]
[365081959,1749451846540,-1000.0,0.00021987,2]
[365081960,1749451846550,-1000.0,0.00021987,2]
[365081961,1749451846559,-1000.0,0.00021987,2]
[365081962,1749451846569,-1000.0,0.00021987,2]
[365081963,1749451846580,-1000.0,0.00021987,2]
[365081964,1749451846589,-1000.0,0.00021987,2]
[365081965,1749451846599,-1000.0,0.00021987,2]
[365081966,1749451846609,-500.0,0.00021998,2]
[365081967,1749451846619,-404.40418507,0.00021999,2]
[365081968,1749451846629,-500.0,0.00021999,2]
[365081969,1749451846639,-500.0,0.00021999,2]
[365081970,1749451846649,-500.0,0.00021999,2]
[365081971,1749451846658,-500.0,0.00021999,2]
[365081972,1749451846668,-500.0,0.00021999,2]
[365081973,1749451846678,-500.0,0.00021999,2]
[365081974,1749451846688,-500.0,0.00021999,2]
[365081975,1749451846697,-500.0,0.00021999,2]
[365081976,1749451846707,-500.0,0.00021999,2]
[365081977,1749451846717,-625.79879404,0.00021999,2]
[365081978,1749451846726,-500.0,0.00021999,2]
[365081979,1749451846737,-1263.46,0.00021999,4]
[365081980,1749451846746,-500.0,0.00021999,2]
[365081981,1749451846756,-22477.11893427,0.00021999,2]
[365081982,1749451846766,-20424.18748304,0.00021999,2]
[365081983,1749451846775,-2403.31676119,0.00022,7]
[365081984,1749451846785,-12937.42721908,0.00022,7]
[365081985,1749451846794,-153.0,0.00022,2]
[365081986,1749451846804,-153.0,0.00022,2]
[365081987,1749451846814,-10758.30602793,0.00022,2]
[365081988,1749451846823,-213.08899333,0.00022,7]
[365081989,1749451846832,-212.17306492,0.00022003,6]
[365081990,1749451846842,-222.42,0.00022065,10]
[365081991,1749451846851,-229.64266968,0.00022074,2]
[365081992,1749451846861,-424.05420114,0.00022074,2]
[365081993,1749451846870,-213.08899333,0.00022074,2]
[365081994,1749451846880,-160.0,0.00022074,2]
[365081995,1749451846889,-834.7738823,0.00022074,2]
[365081996,1749451846899,-1263.46,0.00022081,4]
[365081997,1749451846908,-317.4403672,0.00022082,2]
[365081998,1749451846918,-176.210747,0.00022082,2]
[365081999,1749451846927,-153.0,0.00022082,2]
[365082000,1749451846938,-153.0,0.00022082,2]
[365082001,1749451846947,-153.0,0.00022082,2]
[365082002,1749451846957,-153.0,0.00022082,2]
[365082003,1749451846967,-212.17306492,0.00022107,6]
[365082004,1749451846976,-1263.46,0.0002219,4]
[365082005,1749451846988,-1263.46,0.0002219,4]
[365082006,1749451846999,-1263.46,0.0002219,4]
[365082007,1749451847009,-476.2,0.00022191,2]
[365082008,1749451847018,-440.0,0.00022191,4]
[365082009,1749451847027,-154.4526129,0.00022191,4]
[365082010,1749451847038,-440.0,0.00022191,4]
[365082011,1749451847049,-440.0,0.00022191,4]
[365082012,1749451847060,-3979.61,0.00022191,4]
[365082013,1749451847069,-440.0,0.00022191,4]
[365082014,1749451847079,-440.0,0.00022191,4]
[365082015,1749451847089,-613.7,0.00022191,4]
[365082016,1749451847099,-440.0,0.00022191,4]
[365082017,1749451847108,-1260.42,0.00022191,4]
[365082018,1749451847119,-440.0,0.00022191,4]
[365082019,1749451847128,-440.0,0.00022191,4]
[365082020,1749451847139,-760.39,0.00022191,4]
[365082021,1749451847150,-585.56,0.00022191,4]
[365082022,1749451847161,-467.5,0.00022191,4]
[365082023,1749451847172,-514.65,0.00022191,4]
[365082024,1749451847183,-735.1,0.00022191,4]
[365082025,1749451847193,-843.15,0.00022191,4]
[365082026,1749451847203,-440.0,0.00022191,4]
[365082027,1749451847214,-692.8,0.00022191,4]
[365082028,1749451847225,-991.76,0.00022191,4]
[365082029,1749451847236,-933.44,0.00022191,4]
[365082030,1749451847247,-440.0,0.00022191,4]
[365082031,1749451847256,-440.0,0.00022191,4]
[365082032,1749451847266,-440.0,0.00022191,4]
[365082033,1749451847275,-440.0,0.00022191,4]
[365082034,1749451847286,-440.0,0.00022191,4]
[365082035,1749451847296,-448.86,0.00022191,4]
[365082036,1749451847305,-440.0,0.00022191,4]
[365082037,1749451847315,-212.17306492,0.0002221,6]
[365082038,1749451847325,-2857.9,0.00022279,6]
[365082039,1749451847334,-2857.9,0.00022279,6]
[365082040,1749451847344,-153.0,0.00022301,2]
[365082041,1749451847354,-153.0,0.00022301,2]
[365082042,1749451847363,-212.17306492,0.00022314,7]
[365082043,1749451847372,-212.17306492,0.00022417,7]
[365082044,1749451847382,-193.0,0.00022452,2]
[365082045,1749451847391,-420.0,0.00022452,2]
[365082046,1749451847403,-1263.46,0.00022464,4]
[365082047,1749451847414,-440.0,0.00022465,4]
[365082048,1749451847423,-440.0,0.00022465,4]
[365082049,1749451847432,-440.0,0.00022465,4]
[365082050,1749451847442,-400.0,0.00022465,2]
[365082051,1749451847452,-400.0,0.00022465,2]
[365082052,1749451847462,-400.0,0.00022465,2]
[365082053,1749451847472,-3979.61,0.00022465,4]
[365082054,1749451847485,-440.0,0.00022465,4]
[365082055,1749451847495,-440.0,0.00022465,4]
[365082056,1749451847506,-613.7,0.00022465,4]
[365082057,1749451847516,-440.0,0.00022465,4]
[365082058,1749451847527,-1260.42,0.00022465,4]
[365082059,1749451847537,-440.0,0.00022465,4]
[365082060,1749451847547,-760.39,0.00022465,4]
[365082061,1749451847557,-585.56,0.00022465,4]
[365082062,1749451847566,-514.65,0.00022465,4]
[365082063,1749451847577,-735.1,0.00022465,4]
[365082064,1749451847587,-843.15,0.00022465,4]
[365082065,1749451847597,-440.0,0.00022465,4]
[365082066,1749451847608,-692.8,0.00022465,4]
[365082067,1749451847618,-991.76,0.00022465,4]
[365082068,1749451847627,-933.44,0.00022465,4]
[365082069,1749451847637,-440.0,0.00022465,4]
[365082070,1749451847648,-440.0,0.00022465,4]
[365082071,1749451847658,-440.0,0.00022465,4]
[365082072,1749451847667,-440.0,0.00022465,4]
[365082073,1749451847678,-440.0,0.00022465,4]
[365082074,1749451847688,-448.86,0.00022465,4]
[365082075,1749451847698,-440.0,0.00022465,4]
[365082076,1749451847707,-212.17306492,0.00022521,7]
[365082077,1749451847718,-5000.0,0.00022535,2]
[365082078,1749451847728,-1590.845821,0.00022559,3]
[365082079,1749451847739,-160.0,0.00022622,3]
[365082080,1749451847749,-212.17306492,0.00022624,7]
[365082081,1749451847758,-676.5416518,0.00022639,2]
[365082082,1749451847768,-1571.37,0.00022655,2]
[365082083,1749451847777,-500.0,0.00022684,2]
[365082084,1749451847787,-212.17306492,0.00022728,7]
[365082085,1749451847796,-215.0738,0.00022735,2]
[365082086,1749451847806,-161.62951458,0.00022737,2]
[365082087,1749451847815,-1263.46,0.00022737,4]
[365082088,1749451847825,-1263.46,0.00022738,4]
[365082089,1749451847834,-440.0,0.00022739,4]
[365082090,1749451847843,-440.0,0.00022739,4]
[365082091,1749451847853,-440.0,0.00022739,4]
[365082092,1749451847863,-400.0,0.00022739,2]
[365082093,1749451847872,-3979.61,0.00022739,4]
[365082094,1749451847882,-440.0,0.00022739,4]
[365082095,1749451847892,-440.0,0.00022739,4]
[365082096,1749451847902,-613.7,0.00022739,4]
[365082097,1749451847911,-440.0,0.00022739,4]
[365082098,1749451847921,-1260.42,0.00022739,4]